bitfinex-derivatives/quotes_ETHF0:USTF0_20250616
["timestamp","ask_amount","ask_price","bid_price","bid_amount"]
[1750081986423,0.00570928,2626.4,2626.3,0.76136]
[1750081986623,2.26973956,2626.2,2626.0,4.5515]
[1750081986818,2.26973956,2626.2,2626.1,0.76143]
[1750081987024,0.00570928,2626.4,2626.3,0.76138]
[1750081987221,0.00570928,2626.4,2626.3,3.96918]
[1750081987723,0.76104,2627.5,2627.1,0.76113]
[1750081987915,0.76101,2627.6,2627.2,3.96891]
[1750081988119,0.76103,2627.5,2627.2,3.96891]
[1750081988329,2.26973956,2627.3,2627.2,3.2078]
[1750081988530,2.26973956,2627.3,2627.0,0.00570928]
[1750081988717,2.26973956,2627.1,2627.0,0.76686928]
[1750081989124,0.76108,2627.4,2627.0,0.76686928]
[1750081989425,2.26973956,2627.1,2627.0,0.76686928]
[1750081989822,0.76109,2627.3,2627.0,0.00570928]
[1750081990029,2.26973956,2627.1,2627.0,0.76687928]
[1750081990523,2.26973956,2627.1,2627.0,0.00570928]
[1750081990922,0.00570928,2627.5,2627.0,3.21350928]
[1750081991124,2.26973956,2627.2,2627.1,0.76115]
[1750081991324,2.26973956,2627.2,2627.1,3.96895]
[1750081991531,0.00570928,2627.5,2627.1,3.2078]
[1750081991829,2.26973956,2627.3,2627.2,0.76112]
[1750081992227,0.00570928,2627.5,2627.2,0.76111]
[1750081992426,0.00570928,2627.5,2627.0,0.00570928]
[1750081992427,2.26973956,2627.3,2627.0,0.00570928]
[1750081992726,2.26973956,2627.1,2627.0,0.00570928]
[1750081992930,2.26973956,2627.1,2627.0,0.76687928]
[1750081993128,1.25340928,2627.5,2627.0,0.00570928]
[1750081993321,2.26973956,2627.3,2627.2,3.96892]
[1750081993521,1.25340928,2627.5,2627.2,3.2078]
[1750081993822,2.26973956,2627.3,2627.2,3.96892]
[1750081994330,3.03084956,2627.3,2627.0,0.76686928]
[1750081994527,1.25340928,2627.5,2627.0,0.00570928]
[1750081994726,2.26973956,2627.3,2627.2,3.96892]
[1750081995135,0.00570928,2627.5,2627.4,0.76106]
[1750081995431,2.26973956,2627.3,2627.2,3.96892]
[1750081995825,0.00570928,2627.5,2627.2,3.2078]
[1750081996131,2.26973956,2627.3,2627.2,0.7611]
[1750081996528,2.04285928,2627.5,2627.2,3.2078]
[1750081996730,2.26973956,2627.3,2627.2,3.96892]
[1750081997129,0.76107,2627.4,2627.2,0.76112]
[1750081997428,2.26973956,2627.3,2627.2,0.76112]
[1750081997936,0.76106,2627.4,2627.2,0.7611]
[1750081998131,4.48960928,2627.5,2627.2,0.76112]
[1750081998432,0.00570928,2627.5,2627.4,0.76106]
[1750081998635,0.00570928,2627.5,2627.2,3.96892]
[1750081998636,2.27544884,2627.5,2627.2,3.2078]
[1750081998828,5.47753956,2627.3,2627.0,0.00570928]
[1750081999036,12.39706717,2627.1,2627.0,0.00570928]
[1750081999229,2.26973956,2627.1,2627.0,0.76687928]
[1750081999438,1.2999,2627.2,2627.1,0.76115]
[1750081999933,2.26973956,2627.2,2627.1,0.76115]
[1750082000135,1.30560928,2627.5,2627.4,0.76106]
[1750082000332,0.00570928,2627.5,2627.4,0.76106]
[1750082000528,2.27544884,2627.5,2627.4,0.76106]
[1750082000921,4.17803884,2627.5,2627.0,0.00570928]
[1750082001134,2.26973956,2627.1,2626.6,3.2078]
[1750082001331,9.36617761,2626.8,2626.7,0.76124]
[1750082001630,0.76126,2626.7,2626.6,0.76128]
[1750082001930,1.2943,2626.7,2626.6,0.76129]
[1750082002131,1.2607,2627.0,2626.8,0.76121]
[1750082002132,2.02188,2627.0,2626.8,0.76121]
[1750082002538,3.56403956,2626.9,2626.8,0.76121]
[1750082004329,4.32523956,2626.9,2626.8,0.76121]
[1750082004736,3.56403956,2626.9,2626.8,0.76121]
[1750082005131,4.32523956,2626.9,2626.7,0.76124]
[1750082005331,2.0555,2626.9,2626.7,0.76124]
[1750082005535,11.63591717,2626.8,2626.4,0.00570928]
[1750082005738,2.26973956,2626.5,2626.4,0.76705928]
[1750082006621,3.2078,2627.1,2626.5,1.90328]
[1750082006822,3.2078,2627.1,2626.4,0.00570928]
[1750082006823,2.26973956,2626.7,2626.6,0.76129]
[1750082007028,0.7612,2626.9,2626.8,0.76123]
[1750082007424,3.03093956,2626.9,2626.8,0.76123]
[1750082007736,2.26973956,2626.9,2626.8,0.76123]
[1750082007924,3.03093956,2626.9,2626.8,0.76123]
[1750082008128,4.28273956,2626.9,2626.8,0.76123]
[1750082008336,3.52153956,2626.9,2626.8,0.76123]
[1750082008533,2.26973956,2626.9,2626.8,0.76123]
[1750082008734,2.26973956,2626.9,2626.6,1.90323]
[1750082008735,0.6443,2627.2,2627.1,0.76115]
[1750082008926,1.40542,2627.2,2627.1,0.76115]
[1750082009129,4.92695956,2627.2,2627.1,0.76115]
[1750082009529,4.92695956,2627.2,2626.7,1.90312]
[1750082009730,2.26973956,2626.9,2626.8,0.76123]
[1750082009935,0.76124,2626.8,2626.7,0.76124]
[1750082010242,2.26973956,2626.5,2626.4,0.76705928]
[1750082011234,3.49923956,2626.5,2626.4,0.76705928]
[1750082011635,4.26055956,2626.5,2626.4,0.76705928]
[1750082011830,3.49923956,2626.5,2626.4,0.76705928]
[1750082012232,2.26973956,2626.5,2626.4,3.97485928]
[1750082013537,2.26973956,2626.5,2626.1,3.41638832]
[1750082013538,0.76141,2626.2,2626.1,1.12037712]
[1750082013746,0.76146,2626.0,2625.9,1.12037712]
[1750082013943,0.76146,2626.0,2625.6,2.27824899]
[1750082013944,13.89194794,2626.0,2625.6,1.12037712]
[1750082014132,13.89194794,2625.7,2625.5,1.88198712]
[1750082014337,1.2343,2625.6,2625.5,1.88198712]
[1750082014537,3.50403956,2625.6,2625.5,0.76161]
[1750082017044,0.06737406,2625.7,2625.6,0.76158]
[1750082017440,0.06737406,2625.7,2625.6,7.86162832]
[1750082017646,4.06e-06,2625.7,2625.6,9.26230832]
[1750082017843,4.06e-06,2625.7,2625.6,7.74948]
[1750082018448,4.06e-06,2625.7,2625.6,10.02772899]
[1750082018948,1.3048,2626.5,2625.8,3.80761]
[1750082019150,2.26973956,2626.3,2626.2,0.76141]
[1750082019353,1.3294,2626.6,2626.5,0.76132]
[1750082019549,1.3294,2626.6,2626.5,3.96912]
[1750082019845,3.59913956,2626.6,2626.5,0.76132]
[1750082023962,3.59913956,2626.6,2626.1,1.90357]
[1750082023963,1.90332,2626.5,2625.9,1.13486561]
[1750082024154,2.26973956,2626.0,2625.9,0.7615]
[1750082026056,3.54253956,2626.0,2625.9,0.7615]
[1750082029170,3.54253956,2626.0,2625.6,3.03882561]
[1750082029171,0.7615,2625.9,2625.8,0.76151]
[1750082029466,4.534,2625.9,2625.8,0.76151]
[1750082029667,6.80373956,2625.9,2625.8,0.76151]
[1750082030466,3.59593956,2625.9,2625.8,0.76151]
[1750082030669,1.90321,2626.7,2625.8,0.76151]
[1750082030670,0.00570928,2626.8,2625.8,6.13486561]
[1750082030864,9.28e-06,2626.8,2626.7,6.24147981]
[1750082031064,9.28e-06,2626.8,2626.7,3.96907]
[1750082031265,0.6687,2628.1,2626.7,3.96907]
[1750082031266,5.5e-06,2628.3,2628.2,0.76083]
[1750082031465,2.26345497,2628.7,2628.2,0.76083]
[1750082031466,2.26973956,2628.9,2628.2,9.71858228]
[1750082031676,2.26973956,2628.9,2628.0,1.2281]
[1750082031677,2.26973956,2628.9,2628.8,3.2078]
[1750082031967,3.03037956,2628.9,2628.8,3.2078]
[1750082032167,2.26973956,2628.9,2628.6,0.00570928]
[1750082032374,12.39851419,2628.7,2628.6,0.00570928]
[1750082032562,12.39852419,2628.7,2627.8,4.34062261]
[1750082032765,2.26973956,2628.1,2628.0,0.76089]
[1750082032968,2.26973956,2628.4,2628.3,0.7608]
[1750082033165,1.2907,2628.8,2628.3,3.2078]
[1750082033363,1.42020956,2628.8,2628.7,0.76069]
[1750082033568,9.36808463,2629.6,2628.6,3.2078]
[1750082033874,1.49628411,2629.0,2628.9,0.76063]
[1750082034269,1.49628411,2629.0,2628.6,3.2078]
[1750082034471,1.42020956,2628.8,2628.7,0.76069]
[1750082034671,0.07607455,2629.0,2628.9,0.76063]
[1750082034874,0.07607455,2629.0,2628.9,3.96843]
[1750082035074,0.07607455,2629.0,2628.9,3.2078]
[1750082035075,1.49628411,2629.0,2628.9,3.2078]
[1750082035374,2.71988411,2629.0,2628.7,0.76067]
[1750082035581,3.2078,2629.7,2629.0,0.7606]
[1750082035869,3.2078,2630.1,2629.0,1.27436633]
[1750082036081,10.12841463,2630.0,2629.0,2.55016633]
[1750082036378,1.2236,2629.8,2629.0,2.5501405]
[1750082036763,9.28e-06,2629.1,2629.0,2.55014227]
[1750082036981,9.28e-06,2629.1,2629.0,2.55012712]
[1750082037169,9.28e-06,2629.1,2629.0,7.55012712]
[1750082037376,9.28e-06,2629.1,2629.0,7.0364]
[1750082037670,9.28e-06,2629.1,2629.0,2.5501295]
[1750082037971,1.42021884,2629.1,2629.0,1.27437738]
[1750082038370,1.42021884,2629.1,2629.0,1.27436432]
[1750082038870,1.42021884,2629.1,2629.0,0.51252037]
[1750082039069,1.42021884,2629.1,2629.0,0.51253348]
[1750082039277,0.76063,2628.9,2628.6,0.7607]
[1750082039470,1.2649,2629.0,2628.6,0.7607]
[1750082039778,1.2649,2628.8,2628.7,0.76068]
[1750082040272,9.28e-06,2629.1,2629.0,0.7606]
[1750082040674,1.42021884,2629.1,2629.0,0.7606]
[1750082040874,1.42021884,2629.1,2629.0,1.27419095]
[1750082041080,1.42021884,2629.1,2629.0,0.51359095]
[1750082041382,9.28e-06,2629.1,2629.0,4.48152703]
[1750082041577,9.28e-06,2629.1,2629.0,18.84961166]
[1750082041771,9.28e-06,2629.1,2629.0,18.33648463]
[1750082041973,9.28e-06,2629.1,2629.0,18.84893254]
[1750082042372,9.28e-06,2629.1,2629.0,9.48084791]
[1750082042577,9.28e-06,2629.1,2629.0,9.4808165]
[1750082042874,9.28e-06,2629.1,2629.0,10.7389165]
[1750082043378,9.28e-06,2629.1,2629.0,10.73894845]
[1750082043771,9.28e-06,2629.1,2629.0,10.2265]
[1750082043975,9.28e-06,2629.1,2629.0,10.73813254]
[1750082044376,9.28e-06,2629.1,2629.0,10.73812384]
[1750082044579,9.28e-06,2629.1,2629.0,10.73810714]
[1750082044874,9.28e-06,2629.1,2629.0,5.73813269]
[1750082045185,0.06738334,2629.1,2629.0,10.73814848]
[1750082045480,0.06738334,2629.1,2629.0,5.2265]
[1750082046174,0.06738334,2629.1,2629.0,3.9684]
[1750082047682,3.34e-06,2629.1,2629.0,3.9684]
[1750082047882,3.34e-06,2629.1,2629.0,8.9684]
[1750082048282,3.34e-06,2629.1,2629.0,10.2138]
[1750082048974,3.34e-06,2629.1,2629.0,5.2138]
[1750082049686,3.34e-06,2629.1,2629.0,3.9684]
[1750082050083,3.34e-06,2629.1,2629.0,0.7606]
[1750082050390,3.34e-06,2629.1,2629.0,3.9684]
[1750082051479,3.34e-06,2629.1,2629.0,10.2204]
[1750082052384,2.62e-06,2629.3,2629.2,0.76055]
[1750082052581,3.2078,2630.3,2630.2,0.76027]
[1750082053084,4.62800956,2630.3,2630.2,0.76027]
[1750082053678,4.62800956,2630.3,2630.0,0.00570928]
[1750082053679,0.76029,2630.1,2630.0,0.00570928]
[1750082053884,1.42020956,2630.1,2630.0,0.76602928]
[1750082054081,6.42020956,2630.1,2630.0,0.76602928]
[1750082054281,7.66250956,2630.1,2630.0,0.76602928]
[1750082054486,8.42279956,2630.1,2630.0,0.00570928]
[1750082054677,7.66250956,2630.1,2629.5,1.90118]
[1750082054983,7.66250956,2630.1,2629.5,0.76047]
[1750082054984,1.42020956,2629.6,2629.5,0.76047]
[1750082055183,3.32138956,2629.6,2629.1,0.76056]
[1750082055387,5.10879,2629.8,2629.1,0.76056]
[1750082055388,1.42020956,2629.2,2629.1,0.76056]
[1750082056492,2.65370956,2629.2,2629.1,0.76056]
[1750082057094,0.6527,2629.5,2629.4,0.7605]
[1750082057395,1.42020956,2629.2,2629.1,3.2078]
[1750082057593,1.42020956,2629.2,2629.1,3.96838]
[1750082058891,1.2335,2629.4,2629.3,0.76053]
[1750082059185,1.42020956,2629.3,2629.1,5.10926]
[1750082059388,3.8589,2629.7,2629.6,0.76044]
[1750082059886,5.27910956,2629.7,2629.6,0.76044]
[1750082060089,0.6338,2630.3,2629.4,4.32910262]
[1750082060394,0.6338,2630.3,2629.9,0.76035]
[1750082060395,1.42020956,2630.0,2629.9,0.76035]
[1750082060594,0.6338,2630.3,2630.1,0.76028]
[1750082060791,2.85284811,2629.9,2629.4,1.51043015]
[1750082060994,1.90133,2629.3,2627.7,3.2078]
[1750082061185,12.57588463,2629.5,2628.0,1.9022]
[1750082061186,12.57588463,2628.9,2628.0,1.9022]
[1750082061497,0.91115918,2628.8,2628.0,3.2078]
[1750082061701,0.91115918,2628.7,2628.2,0.76083]
[1750082061884,0.91115918,2628.6,2628.0,3.2078]
[1750082062194,0.91115918,2628.5,2628.0,3.21350928]
[1750082062389,0.91115918,2628.5,2628.4,0.76079]
[1750082062693,0.91115918,2628.5,2628.0,3.21350928]
[1750082062694,0.7608,2628.4,2628.0,0.00570928]
[1750082062887,3.21350928,2628.6,2628.0,0.00570928]
[1750082062888,0.91115918,2628.3,2628.0,0.00570928]
[1750082063092,0.76087,2628.1,2628.0,0.00570928]
[1750082063289,0.91115918,2628.1,2627.1,3.78746]
[1750082063484,4.11895918,2628.0,2627.2,1.90285]
[1750082063692,3.2078,2627.7,2627.4,0.76107]
[1750082063893,0.91115918,2627.6,2627.5,0.76105]
[1750082064091,0.76104,2627.6,2627.4,0.76106]
[1750082064298,0.91115918,2627.5,2627.4,0.76106]
[1750082064494,0.76094,2627.9,2627.7,0.76099]
[1750082064696,0.93801129,2627.8,2627.7,0.76099]
[1750082065998,0.93801129,2627.8,2627.7,0.761]
[1750082066298,1.69898129,2627.8,2627.6,0.76101]
[1750082066596,0.76096,2627.9,2627.7,0.76099]
[1750082066892,1.69823049,2627.8,2627.3,3.2078]
[1750082067195,3.96885,2627.6,2627.4,0.76106]
[1750082067496,3.96885,2627.6,2627.2,0.00570928]
[1750082067497,0.7611,2627.4,2627.2,0.76683928]
[1750082067697,0.76111,2627.3,2627.2,0.00570928]
[1750082068002,0.76111,2627.3,2625.8,3.2078]
[1750082068003,1.90304,2627.0,2625.8,3.2078]
[1750082068204,3.8512,2626.9,2626.2,1.90359]
[1750082068494,4.61244,2626.9,2626.7,0.76126]
[1750082068691,3.8512,2626.9,2626.3,1.90352]
[1750082068893,3.2078,2626.9,2626.8,0.76125]
[1750082069694,0.00570928,2627.1,2627.0,0.7612]
[1750082070694,0.00570928,2627.1,2627.0,3.969]
[1750082070892,13.19308463,2627.9,2627.0,3.969]
[1750082070893,0.761,2627.7,2627.6,0.761]
[1750082071196,0.76101,2627.7,2627.6,0.76101]
[1750082071396,13.19308463,2627.9,2627.1,1.90294]
[1750082071587,1.37816,2627.9,2627.3,3.2078]
[1750082071788,0.62290928,2627.9,2627.8,0.76097]
[1750082072297,1.38384928,2627.9,2627.8,0.76097]
[1750082072600,0.62290928,2627.9,2627.8,0.76097]
[1750082072900,1.38384928,2627.9,2627.8,0.76097]
[1750082073196,0.62290928,2627.9,2627.8,0.76097]
[1750082073703,0.00570928,2627.9,2627.8,0.76097]
[1750082073904,0.76664928,2627.9,2627.8,0.76097]
[1750082074203,0.76099,2627.8,2627.7,0.76099]
[1750082074492,0.76101,2627.7,2627.6,0.76101]
[1750082074702,0.76104,2627.6,2627.5,0.76104]
[1750082074895,0.7611,2627.4,2627.3,0.7611]
[1750082075096,0.76111,2627.3,2627.2,0.76112]
[1750082075299,3.2078,2627.4,2626.9,0.6481]
[1750082075300,3.96891,2627.4,2627.3,0.76111]
[1750082075496,3.2078,2627.4,2627.3,0.76111]
[1750082075997,3.96888,2627.4,2627.3,0.76111]
[1750082076198,3.2078,2627.4,2627.3,0.76111]
[1750082076497,3.96888,2627.4,2627.3,0.76111]
[1750082076998,0.76114,2627.3,2627.2,0.76113]
[1750082077396,3.2078,2627.4,2627.3,0.76111]
[1750082077596,3.96888,2627.4,2627.3,0.76111]
[1750082078398,3.2078,2627.4,2627.3,0.76111]
[1750082080092,3.96888,2627.4,2627.3,0.76111]
[1750082080294,0.76114,2627.3,2627.2,0.76112]
[1750082080896,3.9689,2627.4,2627.3,0.76111]
[1750082082295,3.2078,2627.4,2627.3,0.76111]
[1750082082502,3.96888,2627.4,2627.3,0.76111]
[1750082084000,0.76115,2627.3,2627.2,0.76112]
[1750082084201,0.76115,2627.3,2626.1,3.80724]
[1750082084202,11.27087463,2627.3,2626.6,1.90900928]
[1750082084394,0.76128,2626.8,2626.7,0.76124]
[1750082084896,3.96908,2626.8,2626.7,0.76124]
[1750082085312,9.36808463,2627.0,2626.9,0.76123]
[1750082085501,0.06737406,2627.1,2627.0,0.7612]
[1750082086104,0.82854406,2627.1,2627.0,0.7612]
[1750082086297,0.06737406,2627.1,2627.0,0.7612]
[1750082086604,0.76128,2626.8,2626.7,0.76125]
[1750082086809,0.76129,2626.7,2626.6,0.76701928]
[1750082087202,3.2078,2626.9,2626.6,0.76701928]
[1750082087203,0.76127,2626.8,2626.7,0.76126]
[1750082087507,3.96905,2626.9,2626.8,0.76126]
[1750082088611,3.2078,2626.9,2626.8,0.76126]
[1750082088809,0.82854406,2627.1,2627.0,0.7612]
[1750082089611,0.06737406,2627.1,2627.0,0.7612]
[1750082089809,3.2078,2627.3,2627.2,0.76114]
[1750082090012,0.76102,2627.7,2627.6,0.76103]
[1750082090307,0.76108,2627.5,2627.4,0.76106]
[1750082090502,1.70832727,2627.6,2627.5,0.76106]
[1750082090707,0.76109,2627.5,2627.4,0.76106]
[1750082090910,1.70837667,2627.5,2627.4,0.76106]
[1750082091610,0.94728667,2627.5,2627.4,0.76106]
[1750082092110,1.70834667,2627.5,2627.4,0.76106]
[1750082092613,0.94728667,2627.5,2627.4,0.76106]
[1750082092915,0.00570928,2627.9,2627.4,0.76106]
[1750082092916,0.00570928,2627.9,2627.8,0.76097]
[1750082093104,0.76075,2628.6,2628.5,0.76077]
[1750082093304,0.76078,2628.5,2628.4,0.76078]
[1750082093614,0.9416643,2628.5,2628.4,0.76078]
[1750082094408,0.9416643,2628.5,2628.2,0.00570928]
[1750082094409,0.76082,2628.3,2628.2,0.00570928]
[1750082094605,3.96862,2628.3,2628.2,0.00570928]
[1750082094805,4.9102843,2628.3,2628.2,0.00570928]
[1750082095116,0.76089,2628.1,2628.0,0.76089]
[1750082095711,1.7025543,2628.1,2628.0,0.76089]
[1750082096110,1.7025443,2628.1,2628.0,0.76089]
[1750082096307,0.9416643,2628.1,2628.0,0.76089]
[1750082097113,0.76083,2628.4,2628.3,0.76081]
[1750082097415,0.76083,2628.3,2628.2,0.76083]
[1750082097711,1.69747959,2628.3,2628.2,0.76083]
[1750082097913,0.93664959,2628.3,2628.2,0.76083]
[1750082098112,4.14444959,2628.3,2628.2,0.76083]
[1750082098814,4.90526959,2628.3,2628.2,0.76083]
[1750082099204,4.14444959,2628.3,2628.2,0.76083]
[1750082099811,0.93664959,2628.3,2628.2,0.76083]
[1750082100110,3.21350928,2628.7,2628.6,0.76074]
[1750082100322,4.14877916,2628.7,2628.6,0.76074]
[1750082100519,0.94097916,2628.7,2628.6,0.76074]
[1750082100716,0.00570928,2628.7,2628.6,0.76074]
[1750082100920,9.28e-06,2628.7,2628.6,8.96854]
[1750082101113,9.28e-06,2628.7,2628.5,0.76075]
[1750082101311,15.40999409,2628.6,2628.0,0.6474]
[1750082101516,3.2078,2628.2,2628.1,0.76087]
[1750082101807,0.76094,2627.9,2627.8,0.00570928]
[1750082102014,12.57588463,2627.9,2627.8,0.00570928]
[1750082102211,13.33682463,2627.9,2627.8,0.00570928]
[1750082102415,15.53513547,2627.9,2627.8,0.00570928]
[1750082103313,19.77419547,2627.9,2627.1,0.6474]
[1750082103515,0.76111,2627.4,2627.1,1.9007]
[1750082103815,3.2078,2627.5,2627.1,1.9007]
[1750082104115,9.36808463,2627.6,2626.9,0.76123]
[1750082104116,0.06737406,2627.0,2626.9,0.76123]
[1750082104322,9.36808463,2626.9,2626.8,0.76126]
[1750082104511,0.82858406,2627.0,2626.7,0.00570928]
[1750082104817,0.06737406,2627.0,2626.9,0.76123]
[1750082105012,0.06737406,2627.0,2626.9,1.39943]
[1750082105209,0.76097,2627.9,2627.3,1.90275]
[1750082105517,3.96871,2628.0,2627.4,3.21928]
[1750082105720,0.93218086,2627.9,2627.4,1.3166]
[1750082105912,3.2078,2628.0,2627.9,0.76094]
[1750082106120,4.14128423,2628.0,2627.4,4.5244]
[1750082106319,0.93348423,2627.9,2627.8,0.76096]
[1750082106618,0.00570928,2628.2,2628.1,0.76088]
[1750082106816,0.93914793,2628.2,2628.1,0.76088]
[1750082107018,0.00570928,2628.2,2628.1,0.76088]
[1750082107829,0.76095,2627.9,2627.7,2.07759]
[1750082108018,12.57588463,2627.9,2627.8,0.76097]
[1750082108224,0.00570928,2628.2,2628.1,0.76088]
[1750082110619,3.2078,2628.7,2628.6,0.76074]
[1750082110819,3.2078,2628.7,2628.6,0.76072]
[1750082111015,0.76086,2628.2,2628.1,0.76086]
[1750082111215,3.2078,2628.2,2628.1,0.76086]
[1750082111423,0.7608,2628.4,2628.3,0.76082]
[1750082111622,3.2078,2628.5,2628.4,0.76079]
[1750082111923,0.00570928,2628.6,2628.5,0.76077]
[1750082113827,0.00570928,2628.6,2628.3,0.6718]
[1750082114018,0.00570928,2628.6,2628.5,0.76077]
[1750082116419,0.00570928,2628.6,2628.5,1.98837]
[1750082117030,3.96836,2629.3,2629.2,0.76056]
[1750082117228,0.76058,2629.2,2629.1,0.76058]
[1750082117527,9.36808463,2629.5,2628.9,1.343]
[1750082117830,0.76051,2629.4,2629.3,0.76052]
[1750082118022,12.57588463,2629.5,2628.9,1.343]
[1750082118322,3.2078,2629.2,2629.1,0.76059]
[1750082119028,3.2078,2629.5,2629.2,1.90142]
[1750082119230,0.00570928,2629.6,2629.5,0.76048]
[1750082119914,0.76615928,2629.6,2629.5,0.76048]
[1750082120229,0.00570928,2629.6,2629.5,0.76048]
[1750082120528,0.76615928,2629.6,2629.5,0.76048]
[1750082120723,0.76615928,2629.6,2629.3,0.76051]
[1750082120919,0.00570928,2629.6,2629.1,3.24052]
[1750082121122,0.00570928,2629.6,2629.4,0.76047]
[1750082121325,0.00570928,2629.6,2629.2,1.3391]
[1750082121326,0.00570928,2629.6,2629.5,0.76046]
[1750082122128,6.90680928,2629.6,2628.6,3.2078]
[1750082122425,10.12870463,2629.0,2628.7,0.76069]
[1750082122624,3.2078,2628.9,2628.4,1.993]
[1750082122838,0.76069,2628.8,2628.5,0.76074]
[1750082123016,0.76072,2628.7,2628.4,2.75378]
[1750082123222,10.12880463,2628.7,2628.4,0.76078]
[1750082123425,4.03591406,2628.6,2628.3,0.7608]
[1750082123725,3.27517406,2628.6,2628.4,0.76078]
[1750082124426,3.27517406,2628.6,2628.5,0.76075]
[1750082124824,0.06737406,2628.6,2628.5,0.76075]
[1750082125723,7.63782,2629.5,2628.5,5.0]
[1750082125928,9.36808463,2628.9,2628.3,3.2078]
[1750082126120,10.12874463,2628.9,2628.6,0.7607]
[1750082126322,10.12874463,2628.9,2628.7,0.76069]
[1750082127019,0.76063,2629.0,2628.4,3.16024]
[1750082127226,0.76059,2629.1,2628.8,0.76065]
[1750082127425,0.76061,2629.0,2628.8,0.76065]
[1750082127625,0.76062,2629.0,2628.7,0.76067]
[1750082127823,3.21350928,2629.6,2629.0,0.76059]
[1750082128025,0.76061,2629.0,2628.8,0.76066]
[1750082128222,9.36808463,2629.2,2628.7,0.76067]
[1750082128422,3.2078,2629.0,2628.7,0.76068]
[1750082128729,3.9683,2629.4,2629.2,0.76055]
[1750082128930,3.2078,2629.4,2628.9,1.9016]
[1750082129131,3.2078,2629.4,2629.0,1.245]
[1750082129330,3.2078,2629.4,2629.2,0.76052]
[1750082129629,3.9683,2629.4,2629.2,0.76053]
[1750082129824,0.76052,2629.3,2629.1,0.76056]
[1750082130021,0.76067,2628.8,2628.3,1.90202]
[1750082130222,10.62728463,2629.2,2628.5,1.3452]
[1750082130532,0.06737406,2628.6,2628.5,2.10595]
[1750082130730,9.98148463,2629.5,2628.6,1.90181]
[1750082130932,0.00570928,2629.6,2629.5,0.76046]
[1750082133030,3.2078,2630.6,2629.5,0.76046]
[1750082133031,3.2078,2630.6,2629.9,1.90084]
[1750082133230,3.2078,2630.6,2630.0,1.3148]
[1750082133430,13.33612463,2630.3,2629.6,5.1415]
[1750082133639,12.57588463,2630.3,2629.6,5.1415]
[1750082133832,0.76037,2629.9,2629.7,0.76039]
[1750082134028,12.57588463,2630.0,2629.6,3.8267]
[1750082134232,3.2078,2630.0,2629.9,0.76035]
[1750082134427,3.2078,2630.0,2629.6,5.72776]
[1750082134428,3.2078,2630.0,2629.7,1.3148]
[1750082134633,3.2078,2630.0,2629.9,0.76035]
[1750082134835,9.36808463,2630.3,2629.7,3.21579]
[1750082135130,13.82238463,2630.7,2629.9,3.2078]
[1750082135338,0.92883629,2630.6,2629.9,5.10865]
[1750082135540,0.7602,2630.5,2630.0,1.3159]
[1750082135733,0.7602,2630.5,2630.2,0.76024]
[1750082136033,1.3529,2630.6,2629.8,1.90094]
[1750082136034,9.36808463,2630.3,2629.8,1.90094]
[1750082136338,1.3529,2630.6,2630.2,0.76024]
[1750082136635,0.76018,2630.5,2630.3,0.76023]
[1750082136837,1.3529,2630.6,2629.9,1.3159]
[1750082137038,2.11305,2630.6,2630.0,3.2078]
[1750082137241,1.3529,2630.6,2630.0,5.1086]
[1750082137530,2.11306,2630.6,2630.1,1.3159]
[1750082137732,0.7602,2630.4,2630.2,0.76025]
[1750082138132,1.3529,2630.6,2630.1,1.3159]
[1750082138330,2.11306,2630.6,2630.1,3.21659]
[1750082138543,1.3529,2630.6,2630.1,3.21659]
[1750082138735,0.15772603,2630.8,2630.5,3.2078]
[1750082138933,0.15772603,2630.8,2630.7,0.76011]
[1750082139330,0.91780603,2630.8,2630.5,3.2078]
[1750082139534,9.36808463,2630.7,2630.1,4.4673]
[1750082139842,9.36808463,2630.4,2630.1,3.2078]
[1750082140038,12.57588463,2630.4,2629.8,0.76035]
[1750082140237,12.57588463,2630.4,2629.8,0.76037]
[1750082140238,0.76032,2630.0,2629.8,0.76037]
[1750082140438,14.47663463,2630.1,2629.5,3.97394928]
[1750082140637,3.2078,2630.1,2629.5,5.11460928]
[1750082140834,3.2078,2630.7,2629.9,1.90087]
[1750082141030,0.6411,2630.6,2630.2,0.76026]
[1750082141235,1.8608,2630.6,2630.1,3.2078]
[1750082141442,0.76021,2630.4,2630.1,0.76026]
[1750082141641,0.76024,2630.3,2630.0,2.0198]
[1750082141838,9.36808463,2630.4,2630.0,1.2595]
[1750082142033,0.76029,2630.1,2629.5,1.90684928]
[1750082142238,5.20653,2630.3,2629.5,5.11464928]
[1750082142444,4.4463,2630.3,2629.6,3.25451]
[1750082142638,0.76033,2630.0,2629.6,1.3535]
[1750082142841,0.76032,2630.0,2629.6,1.3535]
[1750082143034,9.36808463,2630.1,2629.6,0.76041]
[1750082143239,0.76035,2629.9,2629.7,0.76039]
[1750082143534,1.99883,2630.0,2629.5,3.21350928]
[1750082143839,9.36808463,2630.1,2629.8,0.76037]
[1750082144033,3.2078,2630.0,2629.6,2.11391]
[1750082144234,0.76042,2629.7,2629.5,0.00570928]
[1750082144546,3.2078,2630.0,2629.9,0.76034]
[1750082144841,9.36808463,2630.5,2630.3,0.76022]
[1750082144842,0.6369,2630.5,2630.3,0.76022]
[1750082145038,3.2078,2630.7,2630.2,3.2078]
[1750082145247,3.2078,2630.7,2630.5,0.76015]
[1750082145436,3.96793,2630.7,2630.5,0.76016]
[1750082145945,3.96792,2630.7,2630.5,0.76016]
[1750082146137,3.96792,2630.7,2630.1,3.19598]
[1750082146138,3.2078,2630.7,2630.1,3.19598]
[1750082146339,3.96792,2630.7,2630.5,0.76016]
[1750082146740,3.96792,2630.7,2630.4,0.76018]
[1750082147047,3.2078,2630.7,2630.6,0.76014]
[1750082147342,3.2078,2630.7,2630.2,5.10842]
[1750082147343,0.15772603,2630.8,2630.7,0.76011]
[1750082149750,0.75989,2631.5,2630.7,0.76011]
[1750082149751,9.36808463,2632.0,2631.0,1.90001]
[1750082150048,0.75985,2631.6,2631.4,0.7599]
[1750082150249,11.88118463,2632.0,2631.2,3.21350928]
[1750082150442,0.91962186,2631.9,2631.2,3.21350928]
[1750082150642,11.88118463,2632.0,2631.4,0.7599]
[1750082150643,0.75984,2631.7,2631.4,0.7599]